bitfinex/quotes_BTCUSD_20230905
["timestamp","ask_amount","ask_price","bid_price","bid_amount"]
[1693889728886,1.55688382,25697.0,25696.0,0.07797955]
[1693889729438,1.3701808,25697.0,25696.0,0.07797955]
[1693889734413,1.55689832,25697.0,25696.0,0.07797955]
[1693889734829,1.55689832,25697.0,25696.0,0.42822855]
[1693889735572,1.55689832,25697.0,25696.0,0.07797955]
[1693889739883,0.67692953,25697.0,25696.0,0.07797955]
[1693889740069,1.55702803,25697.0,25696.0,0.07797955]
[1693889747616,1.00368166,25697.0,25696.0,0.07797955]
[1693889749874,0.81697125,25697.0,25696.0,0.07797955]
[1693889750052,1.00368166,25697.0,25696.0,0.07797955]
[1693889750637,0.81697125,25697.0,25696.0,0.07797955]
[1693889762069,1.59527125,25697.0,25696.0,0.07797955]
[1693889766385,1.78198166,25697.0,25696.0,0.07797955]
[1693889787782,1.00368166,25697.0,25696.0,0.07797955]
[1693889787982,0.29576172,25697.0,25696.0,0.77847755]
[1693889788215,0.24906358,25697.0,25696.0,0.9119598]
[1693889788621,0.24906358,25697.0,25696.0,0.9973598]
[1693889789305,0.24906358,25697.0,25696.0,1.3476088]
[1693889791739,0.24906358,25697.0,25696.0,0.9973598]
[1693889792773,0.15572,25697.0,25696.0,1.21412655]
[1693889792971,0.2333853,25700.0,25696.0,1.37590655]
[1693889793174,0.2333853,25700.0,25699.0,0.0854]
[1693889793391,0.09334358,25700.0,25699.0,1.136024]
[1693889794286,0.25001958,25700.0,25699.0,1.136024]
[1693889794649,0.156676,25700.0,25699.0,1.136024]
[1693889795076,0.157676,25700.0,25699.0,1.28632494]
[1693889795331,0.156676,25700.0,25699.0,1.28632494]
[1693889795535,0.177676,25700.0,25699.0,1.28832494]
[1693889795786,0.198676,25700.0,25699.0,1.29032494]
[1693889797935,0.198676,25700.0,25699.0,1.36167571]
[1693889799567,0.198676,25700.0,25699.0,1.21137477]
[1693889799770,0.198676,25700.0,25699.0,0.86116677]
[1693889800173,0.34478165,25700.0,25699.0,0.86116677]
[1693889806346,0.34478165,25700.0,25699.0,0.51095877]
[1693889813607,0.34478165,25700.0,25699.0,0.16075077]
[1693889816505,1.90120165,25700.0,25699.0,0.07535077]
[1693889818846,2.67941165,25700.0,25699.0,0.07535077]
[1693889819526,3.06605692,25700.0,25699.0,0.07535077]
[1693889822526,3.1594005,25700.0,25699.0,0.07535077]
[1693889823095,3.06605692,25700.0,25699.0,0.07535077]
[1693889823502,3.1594005,25700.0,25699.0,0.07535077]
[1693889823910,3.1594005,25700.0,25699.0,0.03696843]
[1693889824335,3.1594005,25700.0,25696.0,0.3718331]
[1693889824543,3.1594005,25700.0,25699.0,0.07149255]
[1693889824960,3.1594005,25700.0,25696.0,0.21717499]
[1693889825162,3.1384005,25700.0,25696.0,0.21717499]
[1693889826375,3.1384005,25700.0,25696.0,0.22217499]
[1693889826610,3.1174005,25700.0,25696.0,0.22217499]
[1693889826803,3.1184005,25700.0,25696.0,0.22717499]
[1693889827489,1.55654,25698.0,25696.0,0.22717499]
[1693889828459,1.55654,25698.0,25696.0,0.22217499]
[1693889829475,1.55654,25698.0,25696.0,0.21717499]
[1693889829675,1.55754,25698.0,25696.0,0.22217499]
[1693889829933,1.55854,25698.0,25696.0,0.22717499]
[1693889831747,1.55854,25698.0,25697.0,0.07150427]
[1693889832710,1.55754,25698.0,25697.0,0.07150427]
[1693889832833,1.56054,25698.0,25697.0,0.07150427]
[1693889833059,1.56454,25698.0,25697.0,0.07150427]
[1693889833731,0.78627,25698.0,25697.0,0.07150427]
[1693889835422,0.008,25698.0,25697.0,0.07150427]
[1693889837842,0.1337594,25698.0,25697.0,0.07150427]
[1693889843775,0.008,25698.0,25697.0,0.84438149]
[1693889843911,0.008,25698.0,25697.0,1.19461649]
[1693889850816,2.19577398,25698.0,25697.0,0.07150427]
[1693889850988,0.25258871,25698.0,25697.0,0.07150427]
[1693889851191,0.25258871,25698.0,25696.0,0.81635789]
[1693889851392,0.10134358,25698.0,25696.0,0.81635789]
[1693889851593,0.10134358,25698.0,25697.0,0.07140084]
[1693889851994,0.09734358,25698.0,25697.0,0.07140084]
[1693889852727,0.09334358,25698.0,25697.0,0.07140084]
[1693889853084,0.09534358,25698.0,25697.0,0.07140084]
[1693889853295,0.09434358,25698.0,25697.0,0.07140084]
[1693889853474,0.09334358,25698.0,25697.0,0.07140084]
[1693889853680,0.09734358,25698.0,25697.0,0.07140084]
[1693889853890,0.10134358,25698.0,25697.0,0.07140084]
[1693889855675,0.10134358,25698.0,25697.0,0.42163584]
[1693889862610,0.008,25698.0,25697.0,0.07140084]
[1693889862816,1.81060906,25698.0,25697.0,0.07140084]
[1693889863133,0.25406906,25698.0,25697.0,0.350235]
[1693889863581,0.25406906,25698.0,25697.0,0.42173927]
[1693889863781,0.10131285,25698.0,25697.0,0.42173927]
[1693889874339,0.10131285,25698.0,25697.0,0.07150427]
[1693889874538,0.22495928,25698.0,25697.0,0.07150427]
[1693889878162,1.00322928,25698.0,25697.0,0.07150427]
[1693889879763,0.22495928,25698.0,25697.0,0.07150427]
[1693889883250,0.21745928,25698.0,25697.0,0.07150427]
[1693889884039,0.09381285,25698.0,25697.0,0.07150427]
[1693889889492,0.0005,25698.0,25697.0,0.07150427]
[1693889889696,0.09382832,25698.0,25697.0,0.07150427]
[1693889897718,0.09382832,25698.0,25697.0,0.15690427]
[1693889911686,0.09382832,25698.0,25697.0,0.85737427]
[1693889911898,0.09382832,25698.0,25697.0,0.9653708]
[1693889912096,0.09382832,25698.0,25697.0,1.3156058]
[1693889912319,0.0005,25698.0,25697.0,1.3156058]
[1693889920227,0.0005,25698.0,25697.0,1.20760927]
[1693889920553,0.0005,25698.0,25697.0,1.27624927]
[1693889920752,0.0005,25698.0,25697.0,1.42832149]
[1693889920952,0.0005,25698.0,25697.0,1.42682149]
[1693889921330,0.0005,25698.0,25697.0,1.42904149]
[1693889921537,0.0005,25698.0,25697.0,1.42880149]
[1693889921738,0.0005,25698.0,25697.0,1.42862149]
[1693889921937,0.0005,25698.0,25697.0,1.42844149]
[1693889922134,0.0005,25698.0,25697.0,1.42838149]
[1693889922468,0.0005,25698.0,25697.0,1.33657282]
[1693889933500,0.0005,25698.0,25697.0,1.20760927]
[1693889934257,0.24900432,25700.0,25697.0,1.34867851]
[1693889934484,0.24900432,25700.0,25698.0,0.0854]
[1693889934635,0.24900432,25700.0,25699.0,1.050624]
[1693889935049,0.24900432,25700.0,25699.0,1.12231896]
[1693889935431,0.25000432,25700.0,25699.0,1.12231896]
[1693889935623,0.24900432,25700.0,25699.0,1.12231896]
[1693889935840,0.24900432,25700.0,25699.0,1.29372631]
[1693889936043,0.26100432,25700.0,25699.0,1.29472631]
[1693889936435,0.26200432,25700.0,25699.0,1.29472631]
[1693889936774,0.26100432,25700.0,25699.0,1.29472631]
[1693889937423,0.26100432,25700.0,25699.0,1.21796162]
[1693889937621,0.27300432,25700.0,25699.0,1.21896162]
[1693889938423,0.179676,25700.0,25699.0,1.13295427]
[1693889938626,0.179676,25700.0,25699.0,1.3013983]
[1693889938894,0.024,25700.0,25699.0,1.3013983]
[1693889939266,0.024,25700.0,25699.0,1.3003983]
[1693889939267,0.012,25700.0,25699.0,1.3003983]
[1693889939585,0.013,25700.0,25699.0,1.3143983]
[1693889940081,0.012,25700.0,25699.0,1.3003983]
[1693889940290,0.013,25700.0,25699.0,1.3143983]
[1693889940670,0.001,25700.0,25699.0,1.3133983]
[1693889941188,0.002,25700.0,25699.0,1.3273983]
[1693889941387,0.002,25700.0,25699.0,1.54559954]
[1693889941587,0.002,25700.0,25699.0,1.69998927]
[1693889948135,0.002,25700.0,25699.0,1.73124981]
[1693889952083,0.002,25700.0,25699.0,1.57686008]
[1693889952339,0.002,25700.0,25699.0,1.64652008]
[1693889952516,0.002,25700.0,25699.0,1.64760008]
[1693889952866,0.002,25700.0,25699.0,1.64754008]
[1693889952980,0.002,25700.0,25699.0,1.64778008]
[1693889953184,0.002,25700.0,25699.0,1.64766008]
[1693889953541,0.002,25700.0,25699.0,1.64760008]
[1693889954195,0.002,25700.0,25699.0,1.64766008]
[1693889954506,0.002,25700.0,25699.0,1.64748008]
[1693889954921,0.002,25700.0,25699.0,1.64742008]
[1693889955526,0.002,25700.0,25699.0,1.64736008]
[1693889955731,0.002,25700.0,25699.0,1.64802008]
[1693889955928,0.002,25700.0,25699.0,1.64640008]
[1693889956268,0.002,25700.0,25699.0,1.64676008]
[1693889956933,0.002,25700.0,25699.0,1.64670008]
[1693889957138,0.002,25700.0,25699.0,1.64634008]
[1693889957439,0.002,25700.0,25699.0,1.64760008]
[1693889957743,0.002,25700.0,25699.0,1.64694008]
[1693889957971,0.002,25700.0,25699.0,1.64652008]
[1693889958522,0.002,25700.0,25699.0,1.64646008]
[1693889958947,0.002,25700.0,25699.0,1.64652008]
[1693889959549,0.002,25700.0,25699.0,1.64646008]
[1693889959754,0.002,25700.0,25699.0,1.64760008]
[1693889959930,0.002,25700.0,25699.0,1.64718008]
[1693889960144,0.002,25700.0,25699.0,1.64598008]
[1693889960499,0.002,25700.0,25699.0,1.64586008]
[1693889960678,0.002,25700.0,25699.0,1.64544008]
[1693889960874,0.002,25700.0,25699.0,1.64550008]
[1693889961017,0.002,25700.0,25699.0,1.64532008]
[1693889961209,0.002,25700.0,25699.0,1.64496008]
[1693889961409,0.002,25700.0,25699.0,1.64490008]
[1693889961674,0.002,25700.0,25699.0,1.64466008]
[1693889961884,0.002,25700.0,25699.0,1.64472008]
[1693889962092,0.002,25700.0,25699.0,1.64478008]
[1693889962291,0.002,25700.0,25699.0,1.64472008]
[1693889962522,0.002,25700.0,25699.0,1.64460008]
[1693889962762,0.002,25700.0,25699.0,1.64466008]
[1693889962967,0.002,25700.0,25699.0,1.64454008]
[1693889963425,0.002,25700.0,25699.0,1.64448008]
[1693889963649,0.002,25700.0,25699.0,1.64514008]
[1693889963836,0.002,25700.0,25699.0,1.78704366]
[1693889964036,0.002,25700.0,25699.0,1.71870366]
[1693889966378,0.002,25700.0,25699.0,1.68744312]
[1693889967035,0.152654,25702.0,25699.0,1.68744312]
[1693889967279,0.152654,25702.0,25701.0,0.78576]
[1693889968172,0.153654,25702.0,25701.0,0.78576]
[1693889968318,0.154654,25702.0,25701.0,0.78576]
[1693889968485,0.153654,25702.0,25701.0,0.78576]
[1693889968710,0.156654,25702.0,25701.0,0.78576]
[1693889969619,0.159654,25702.0,25701.0,0.78576]
[1693889973773,0.159654,25702.0,25701.0,0.70036]
[1693889977046,0.159654,25702.0,25701.0,0.80428279]
[1693889978052,0.159654,25702.0,25701.0,0.87598258]
[1693889984612,0.25298232,25702.0,25701.0,0.87598258]
[1693889997822,1.03113132,25702.0,25701.0,0.07169979]
[1693889998166,1.95967004,25702.0,25701.0,0.07169979]
[1693889998393,1.95967004,25702.0,25699.0,0.62364731]
[1693889998773,1.95967004,25702.0,25701.0,0.07169979]
[1693889999087,1.95967004,25702.0,25699.0,0.62364731]
[1693889999243,1.95667004,25702.0,25699.0,0.62364731]
[1693889999653,1.95767004,25702.0,25699.0,0.63764731]
[1693890000071,1.17552104,25702.0,25699.0,0.67635888]
[1693890000836,1.17652104,25702.0,25699.0,0.69035888]
[1693890001682,1.17652104,25702.0,25700.0,0.1396623]
[1693890001879,1.17652104,25702.0,25700.0,0.4898483]
[1693890002449,1.17552104,25702.0,25700.0,0.4898483]
[1693890002652,1.17552104,25702.0,25700.0,0.8400423]
[1693890002880,1.17652104,25702.0,25700.0,0.8450423]
[1693890003057,1.17552104,25702.0,25700.0,0.8450423]
[1693890003487,0.39837204,25702.0,25700.0,0.8500423]
[1693890004056,1.95467504,25702.0,25700.0,0.01]
[1693890004256,1.95467504,25702.0,25700.0,0.360193]
[1693890004883,0.24798232,25702.0,25700.0,0.710387]
[1693890005079,0.24798232,25702.0,25701.0,0.14055377]
[1693890005309,0.24798232,25702.0,25701.0,0.49073377]
[1693890005945,0.24698232,25702.0,25701.0,0.49073377]
[1693890006723,0.24898232,25702.0,25701.0,0.49073377]
[1693890007258,0.25298232,25702.0,25701.0,0.84091377]
[1693890007765,0.25298232,25702.0,25701.0,1.19109377]
[1693890013743,0.25298232,25702.0,25701.0,1.26273491]
[1693890024992,0.25298232,25702.0,25701.0,1.26273491]
[1693890032241,0.159654,25702.0,25701.0,1.26273491]
[1693890047962,0.06672176,25702.0,25701.0,1.26273491]
[1693890052472,0.06672176,25702.0,25701.0,1.27423803]
[1693890059258,0.06672176,25702.0,25701.0,1.67856953]
[1693890059447,0.06672176,25702.0,25701.0,1.68288953]
[1693890059687,0.06672176,25702.0,25701.0,1.68258953]
[1693890059855,0.007,25702.0,25701.0,1.68258953]
[1693890060175,0.004,25702.0,25701.0,1.68240953]
[1693890060421,0.006,25702.0,25701.0,1.70528953]
[1693890060628,0.006,25702.0,25701.0,1.70522953]
[1693890060815,0.004,25702.0,25701.0,1.68144953]
[1693890061044,0.23332032,25705.0,25701.0,1.68222953]
[1693890061256,0.23332032,25705.0,25702.0,0.23524318]
[1693890061466,0.23332032,25705.0,25703.0,1.050459]
[1693890062485,0.23432032,25705.0,25703.0,1.050459]
[1693890062669,0.139992,25705.0,25703.0,1.050459]
[1693890062879,0.140992,25705.0,25703.0,1.055459]
[1693890063084,0.141992,25705.0,25703.0,1.060459]
[1693890063831,0.141992,25705.0,25703.0,0.9958948]
[1693890068956,0.2877526,25705.0,25703.0,0.9958948]
[1693890069159,0.141992,25705.0,25703.0,0.9958948]
[1693890069366,0.141992,25705.0,25704.0,0.0427452]
[1693890069566,0.141992,25705.0,25704.0,0.7430252]
[1693890069995,0.141992,25705.0,25704.0,0.81494214]
[1693890070148,0.140992,25705.0,25704.0,0.81494214]
[1693890071014,0.140992,25705.0,25704.0,1.16508214]
[1693890071209,0.139992,25705.0,25704.0,1.16508214]
[1693890071706,0.146992,25705.0,25704.0,1.16508214]
[1693890076847,0.24032032,25705.0,25704.0,1.16508214]
[1693890084487,0.146992,25705.0,25704.0,1.20773694]
[1693890084692,0.007,25705.0,25704.0,1.29550271]
[1693890085081,0.007,25705.0,25704.0,1.36354271]
[1693890085519,0.139992,25707.0,25704.0,1.29550271]
[1693890085727,0.002,25705.0,25704.0,1.22010271]
[1693890085927,0.002,25705.0,25704.0,1.30550271]
[1693890086947,0.001,25705.0,25704.0,1.30050271]
[1693890087357,0.001,25705.0,25704.0,1.30550271]
[1693890088192,0.001,25705.0,25704.0,1.30050271]
[1693890088397,0.002,25705.0,25704.0,1.30550271]
[1693890089431,0.002,25705.0,25704.0,1.22010271]
[1693890092106,0.002,25705.0,25704.0,0.86996271]
[1693890098573,0.002,25705.0,25704.0,1.22010271]
[1693890101371,0.002,25705.0,25704.0,1.30550271]
[1693890105858,0.002,25705.0,25704.0,0.78219694]
[1693890106525,0.002,25705.0,25704.0,1.13233694]
[1693890122738,1.4927137,25705.0,25704.0,0.08191694]
[1693890122930,3.14215803,25705.0,25704.0,0.08191694]
[1693890123134,3.60203378,25705.0,25704.0,0.08191694]
[1693890123503,3.14215803,25705.0,25704.0,0.01]
[1693890123952,3.60203396,25705.0,25704.0,0.08250415]
[1693890124159,3.60203396,25705.0,25704.0,0.01]
[1693890124365,3.14215803,25705.0,25704.0,0.01]
[1693890124993,3.14215803,25705.0,25704.0,0.08250415]
[1693890125212,3.14215803,25705.0,25701.0,0.75492607]
[1693890125427,3.14215803,25705.0,25701.0,0.40475007]
[1693890125428,0.56526675,25704.0,25701.0,0.40475007]
[1693890125626,2.12147975,25704.0,25702.0,0.07238627]
[1693890127072,0.18724237,25703.0,25702.0,0.07238627]
[1693890127328,0.18724237,25703.0,25702.0,0.09438627]
[1693890128565,0.18724237,25703.0,25702.0,0.11638627]
[1693890128993,0.18724237,25703.0,25702.0,0.07238627]
[1693890129193,0.18924237,25703.0,25702.0,0.09438627]
[1693890135620,0.96736137,25703.0,25702.0,0.09438627]
[1693890165854,1.06058285,25703.0,25702.0,0.09438627]
[1693890167479,0.09522148,25703.0,25702.0,0.09438627]
[1693890167686,0.09522148,25703.0,25702.0,1.31143576]
[1693890167687,0.002,25703.0,25702.0,1.31143576]
[1693890167894,0.002,25703.0,25702.0,1.30903576]
[1693890168102,0.002,25703.0,25702.0,1.30741576]
[1693890168309,0.002,25703.0,25702.0,1.30657576]
[1693890168523,0.002,25703.0,25702.0,1.23967576]
[1693890168744,0.002,25703.0,25702.0,1.30711576]
[1693890168959,0.002,25703.0,25702.0,1.32163576]
[1693890169160,0.002,25703.0,25702.0,1.32127576]
[1693890169351,0.002,25703.0,25702.0,1.31731576]
[1693890169550,0.002,25703.0,25702.0,1.31911576]
[1693890169756,0.002,25703.0,25702.0,1.31731576]
[1693890169988,0.002,25703.0,25702.0,1.31695576]
[1693890170180,0.002,25703.0,25702.0,1.31659576]
[1693890170327,0.002,25703.0,25702.0,1.31737576]
[1693890170543,0.002,25703.0,25702.0,1.31365576]
[1693890170755,0.002,25703.0,25702.0,1.31287576]
[1693890170982,0.002,25703.0,25702.0,1.31263576]
[1693890171176,0.002,25703.0,25702.0,1.31233576]
[1693890171434,0.002,25703.0,25702.0,1.31203576]
[1693890171650,0.002,25703.0,25702.0,1.31179576]
[1693890171857,0.002,25703.0,25702.0,1.31155576]
[1693890172064,0.002,25703.0,25702.0,1.31071576]
[1693890172270,0.002,25703.0,25702.0,1.30915576]
[1693890172472,0.002,25703.0,25702.0,1.31173576]
[1693890172672,0.002,25703.0,25702.0,1.31281576]
[1693890172959,0.002,25703.0,25702.0,1.30807576]
[1693890173162,0.002,25703.0,25702.0,1.30783576]
[1693890173380,0.002,25703.0,25702.0,1.30753576]
[1693890173591,0.002,25703.0,25702.0,1.30681576]
[1693890173800,0.002,25703.0,25702.0,1.30651576]
[1693890174015,0.002,25703.0,25702.0,1.30609576]
[1693890174232,0.002,25703.0,25702.0,1.30591576]
[1693890174445,0.002,25703.0,25702.0,1.30561576]
[1693890174644,0.002,25703.0,25702.0,1.30555576]
[1693890174881,0.002,25703.0,25702.0,1.30507576]
[1693890175092,0.002,25703.0,25702.0,1.30585576]
[1693890175303,0.002,25703.0,25702.0,1.23967576]
[1693890187738,0.002,25703.0,25702.0,1.24001592]
[1693890222704,0.002,25703.0,25702.0,1.78772119]
[1693890222916,0.002,25703.0,25702.0,1.78754119]
[1693890223093,0.002,25703.0,25702.0,1.78814119]
[1693890223300,0.002,25703.0,25702.0,1.78730119]
[1693890223494,0.002,25703.0,25702.0,1.78742119]
[1693890223822,0.002,25703.0,25702.0,1.78610119]
[1693890223998,0.002,25703.0,25702.0,1.78502119]
[1693890224204,0.002,25703.0,25702.0,1.78544119]
[1693890224409,0.002,25703.0,25702.0,1.78358119]
[1693890224641,0.002,25703.0,25702.0,1.78466119]
[1693890224847,0.002,25703.0,25702.0,1.78454119]
[1693890225024,0.002,25703.0,25702.0,1.78412119]
[1693890225255,0.002,25703.0,25702.0,1.78460119]
[1693890225458,0.002,25703.0,25702.0,1.78514119]
[1693890225687,0.002,25703.0,25702.0,1.78322119]
[1693890225808,0.002,25703.0,25702.0,1.78418119]
[1693890226011,0.002,25703.0,25702.0,1.78406119]
[1693890226209,0.002,25703.0,25702.0,1.78394119]
[1693890226416,0.002,25703.0,25702.0,1.78268119]
[1693890226633,0.002,25703.0,25702.0,1.78460119]
[1693890226822,0.002,25703.0,25702.0,1.78322119]
[1693890227043,0.002,25703.0,25702.0,1.77860119]
[1693890227262,0.002,25703.0,25702.0,1.77968119]
[1693890227480,0.002,25703.0,25702.0,1.78082119]
[1693890227748,0.002,25703.0,25702.0,1.78088119]
[1693890227969,0.002,25703.0,25702.0,1.78076119]
[1693890228181,0.002,25703.0,25702.0,1.77962119]
[1693890228316,0.002,25703.0,25702.0,1.78022119]
[1693890228512,0.002,25703.0,25702.0,1.77998119]
[1693890228722,0.002,25703.0,25702.0,1.78004119]
[1693890228927,0.002,25703.0,25702.0,1.77956119]
[1693890229168,0.002,25703.0,25702.0,1.77884119]
[1693890229372,0.002,25703.0,25702.0,0.88984892]
[1693890231828,0.002,25703.0,25702.0,0.79506043]
[1693890232097,0.94409802,25703.0,25702.0,0.09472643]
[1693890232507,1.72221702,25703.0,25702.0,0.09472643]
[1693890233614,0.94409802,25703.0,25702.0,0.09472643]
[1693890241671,1.72221702,25703.0,25702.0,0.09472643]
[1693890241940,2.59379552,25703.0,25702.0,0.09472643]
[1693890242337,2.73358428,25703.0,25702.0,0.09472643]
[1693890242570,2.59379552,25703.0,25702.0,0.09472643]
[1693890243597,2.81619478,25703.0,25702.0,0.09472643]
[1693890243805,2.95598354,25703.0,25702.0,0.09472643]
[1693890244012,3.00103386,25703.0,25702.0,0.09472643]
[1693890244191,2.81619478,25703.0,25702.0,0.09472643]
[1693890244396,2.95598354,25703.0,25702.0,0.09472643]
[1693890244830,2.81619478,25703.0,25702.0,0.09472643]
[1693890245032,2.82019478,25703.0,25702.0,0.09472643]
[1693890245260,2.81619478,25703.0,25702.0,0.09472643]
[1693890245658,2.83819478,25703.0,25702.0,0.09672643]
[1693890246073,2.83619478,25703.0,25702.0,0.07472643]
[1693890246456,2.85819478,25703.0,25702.0,0.07672643]
[1693890248994,3.04167517,25703.0,25702.0,0.07672643]
[1693890249195,2.85819478,25703.0,25702.0,0.07672643]
[1693890249608,2.94359478,25703.0,25702.0,0.07672643]
[1693890249958,2.94359478,25703.0,25702.0,0.00434016]
[1693890250755,2.94359478,25703.0,25702.0,0.004]
[1693890251446,2.94359478,25703.0,25702.0,0.07562275]
[1693890251669,2.94359478,25703.0,25702.0,0.004]
[1693890251670,3.33024005,25703.0,25702.0,0.004]
[1693890251875,3.17657605,25703.0,25702.0,0.00440418]
[1693890252124,3.59672385,25703.0,25702.0,0.00440418]
[1693890252269,3.13678729,25703.0,25702.0,0.00440418]
[1693890252842,3.13678729,25703.0,25702.0,0.004]
[1693890253023,3.27638401,25703.0,25702.0,0.004]
[1693890254859,3.08999899,25703.0,25702.0,0.004]
[1693890254995,3.06999899,25703.0,25702.0,0.004]
[1693890259844,3.16300977,25703.0,25702.0,0.004]
[1693890260045,3.06999899,25703.0,25702.0,0.004]
[1693890260448,3.00999899,25703.0,25702.0,0.004]
[1693890260873,3.1030075,25703.0,25702.0,0.004]
[1693890263447,3.16999899,25703.0,25702.0,0.004]
[1693890263740,4.88809345,25703.0,25702.0,0.004]
[1693890263940,5.18809345,25703.0,25702.0,0.004]
[1693890264767,5.18809345,25703.0,25702.0,0.002]
[1693890264976,0.16,25701.0,25696.0,0.2262]
[1693890265191,0.16,25701.0,25695.0,0.184496]
[1693890265192,0.0854,25698.0,25695.0,0.019796]
[1693890265392,1.94324527,25697.0,25695.0,0.250996]
[1693890265833,2.72154527,25697.0,25696.0,0.00036672]
[1693890266740,2.72254527,25697.0,25695.0,0.258996]
[1693890266943,2.87825427,25697.0,25695.0,0.258996]
[1693890267301,0.1852584,25696.0,25695.0,0.258996]
[1693890267680,1.7419204,25696.0,25695.0,0.258996]
[1693890267815,1.7419204,25696.0,25695.0,0.26736302]
[1693890268159,1.7419204,25696.0,25695.0,0.25136302]
[1693890268322,1.7429204,25696.0,25695.0,0.25936302]
[1693890269238,1.7439204,25696.0,25695.0,0.26736302]
[1693890272958,2.5222514,25696.0,25695.0,0.26736302]
[1693890273547,2.90889667,25696.0,25695.0,0.26736302]
[1693890279914,2.90889667,25696.0,25695.0,0.33403957]
[1693890296673,2.90889667,25696.0,25695.0,0.10283957]
[1693890298447,2.95709673,25696.0,25695.0,0.10283957]
[1693890300101,2.95509673,25696.0,25695.0,0.08683957]
[1693890300504,2.95709673,25696.0,25695.0,0.09383957]
[1693890301036,2.95609673,25696.0,25695.0,0.08683957]
[1693890301176,2.95709673,25696.0,25695.0,0.08683957]
[1693890304014,3.05008479,25696.0,25695.0,0.08683957]
[1693890304214,2.95709673,25696.0,25695.0,0.08683957]
[1693890304730,3.05008479,25696.0,25695.0,0.08683957]
[1693890304941,2.95709673,25696.0,25695.0,0.08683957]
[1693890305148,3.05008479,25696.0,25695.0,0.08683957]
[1693890305793,2.96468479,25696.0,25695.0,0.08683957]
[1693890305998,2.87169673,25696.0,25695.0,0.08683957]
[1693890307614,2.96468479,25696.0,25695.0,0.08683957]
[1693890310227,3.10416688,25696.0,25695.0,0.08683957]
[1693890310458,1.16697627,25696.0,25695.0,0.13751795]
[1693890310661,1.16697627,25696.0,25695.0,0.48777995]
[1693890310662,0.002,25696.0,25695.0,0.48777995]
[1693890310836,0.002,25696.0,25695.0,0.83804195]
[1693890316108,0.002,25696.0,25695.0,0.78736357]
[1693890316357,0.14948892,25696.0,25695.0,0.43710157]
[1693890316526,0.14948892,25696.0,25695.0,0.08683957]
[1693890317169,2.96411525,25696.0,25695.0,0.08683957]
[1693890317383,0.1698732,25695.0,25693.0,0.11391079]
[1693890317613,1.7266242,25695.0,25693.0,0.11391079]
[1693890317780,1.7266242,25695.0,25694.0,0.00033067]
[1693890318545,1.7286242,25695.0,25694.0,0.00033067]
[1693890318747,1.7286242,25695.0,25693.0,0.007]
[1693890319371,1.7286242,25695.0,25693.0,0.357288]
[1693890319596,0.1744283,25694.0,25693.0,0.357288]
[1693890320255,0.1744283,25694.0,25693.0,0.350288]
[1693890320703,0.1744283,25694.0,25693.0,0.358288]
[1693890320704,0.1764283,25694.0,25693.0,0.358288]
[1693890320909,0.1784283,25694.0,25693.0,0.358288]
[1693890322075,0.1784283,25694.0,25693.0,0.350288]
[1693890322285,0.9568193,25694.0,25692.0,0.435691]
[1693890322489,0.9568193,25694.0,25692.0,0.785988]
[1693890323106,0.9548193,25694.0,25692.0,0.785988]
[1693890323329,0.9578193,25694.0,25692.0,0.785988]
[1693890323538,0.16992439,25693.0,25692.0,0.785994]
[1693890323742,0.16992439,25693.0,25692.0,0.786994]
[1693890324162,0.16992439,25693.0,25692.0,0.436697]
[1693890324686,0.17292439,25693.0,25692.0,0.001]
[1693890324893,0.17292439,25693.0,25692.0,0.351294]
[1693890325266,0.17292439,25693.0,25692.0,0.41564414]
[1693890325445,0.17292439,25693.0,25692.0,0.76494714]
[1693890325918,0.17592439,25693.0,25692.0,0.76594714]
[1693890329013,0.17592439,25693.0,25692.0,0.85134714]
[1693890333888,0.17592439,25693.0,25692.0,0.76594714]
[1693890342428,0.006,25693.0,25692.0,0.76594714]
[1693890347418,0.006,25693.0,25692.0,1.11625014]
[1693890353887,0.006,25693.0,25692.0,1.24298506]
[1693890354101,0.006,25693.0,25692.0,1.20165014]
[1693890354271,0.18798511,25693.0,25692.0,1.20165014]
[1693890355082,0.18798511,25693.0,25692.0,1.11625014]
[1693890355283,0.18798511,25693.0,25692.0,0.76594714]
[1693890358583,0.18798511,25693.0,25692.0,0.85134714]
[1693890358584,0.006,25693.0,25692.0,0.85134714]
[1693890360376,0.006,25693.0,25692.0,1.20165014]
[1693890361867,0.006,25693.0,25692.0,1.25593182]
[1693890362104,0.006,25693.0,25692.0,1.4202966]
[1693890362272,0.006,25693.0,25692.0,1.4195766]
[1693890362584,0.006,25693.0,25692.0,1.4193966]
[1693890362792,0.006,25693.0,25692.0,1.4190966]
[1693890363018,0.006,25693.0,25692.0,1.4188566]
[1693890363250,0.006,25693.0,25692.0,1.4187366]
[1693890363451,0.006,25693.0,25692.0,1.32529182]
[1693890363604,0.006,25693.0,25692.0,1.32517182]
[1693890363791,0.006,25693.0,25692.0,1.32451182]
[1693890363988,0.006,25693.0,25692.0,1.32385182]
[1693890364192,0.006,25693.0,25692.0,1.32403182]
[1693890364442,0.006,25693.0,25692.0,1.32409182]
[1693890364595,0.006,25693.0,25692.0,1.32451182]
[1693890364795,0.006,25693.0,25692.0,1.32385182]
[1693890364997,0.006,25693.0,25692.0,1.32355182]
[1693890365216,0.006,25693.0,25692.0,1.32331182]
[1693890365422,0.006,25693.0,25692.0,1.25593182]
[1693890377055,0.006,25693.0,25692.0,0.46992582]
[1693890379283,0.006,25693.0,25692.0,0.82022882]
[1693890380610,0.006,25693.0,25692.0,1.25593182]
[1693890380796,0.006,25693.0,25692.0,1.33075182]
[1693890380946,0.006,25693.0,25692.0,1.33177182]
[1693890381154,0.006,25693.0,25692.0,1.32649182]
[1693890381399,0.006,25693.0,25692.0,1.32619182]
[1693890381545,0.006,25693.0,25692.0,1.32607182]
[1693890381747,0.006,25693.0,25692.0,1.32637182]
[1693890381990,0.006,25693.0,25692.0,1.32553182]
[1693890382171,0.006,25693.0,25692.0,1.32601182]
[1693890382382,0.006,25693.0,25692.0,1.32679182]
[1693890382578,0.006,25693.0,25692.0,1.32661182]
[1693890382780,0.006,25693.0,25692.0,0.20503182]
[1693890382960,0.006,25693.0,25692.0,0.90563782]
[1693890383178,0.006,25693.0,25692.0,1.25594082]
[1693890389682,0.006,25693.0,25692.0,1.32350082]